{"text_format":"3","workbook":"xlsx","n_sheets":5,"sheets":["¿Cómo usar este archivo","📊 Dashboard","👥 Datos Colaboradores","🚪 Registro Salidas","💰 Configuración Costos"],"not_rendered":{"images":3},"read":"whole","date_system":"1900"}

{"sheet":"¿Cómo usar este archivo","index":0,"n_rows":13,"n_cols":1,"rows_kept":13,"merged":[[1,0,1,1],[3,0,3,1],[6,0,6,1],[9,0,9,1],[10,0,10,1],[11,0,11,1],[12,0,12,1],[13,0,13,1]]}
[]
["¡Hola!\nPreparamos esta plantilla para ayudarte a analizar y entender la rotación de talento en tu organización. Aquí podrás ver los datos clave, los costos asociados y qué áreas tienen mayor impacto."]
[]
["  IMPORTANTE: PARA USARLA DESCÁRGALA EN TU PC O DUPLÍCALA."]
[]
["\n🔎 En este archivo encontrarás:"]
["- Un dashboard automático con métricas de rotación.\n- El costo total de la rotación y el costo por salida.\n- Un desglose por categoría de costos.\n- La rotación por departamento para identificar dónde se concentra el problema."]
[]
["🔎 Instrucciones:"]
["1. Ingresa tus datos en la sección correspondiente.\nAñade la información de:\n- Total de colaboradores actuales\n- Total de salidas del año\n- Tipo de salida (voluntaria / involuntaria)\n- Colaboradores y salidas por departamento\n\nTodo lo demás se actualizará automáticamente."]
["2. Revisa el dashboard.\nConforme ingreses datos, verás:\n- La tasa de rotación anual\n- La rotación voluntaria e involuntaria\n- El costo por salida y el costo total\n- Las áreas con mayor rotación"]
["3. Analiza los costos de rotación.\nEl archivo calculará automáticamente los costos según las categorías:\n- Reclutamiento\n- Capacitación\n- Pérdida de productividad\n- Pérdida de conocimiento\n- Horas extras\n\nPuedes editar los montos si necesitas adaptarlos a tu empresa."]
["4. Identifica prioridades.\nSi un departamento muestra una tasa alta de rotación, o un costo elevado, podrás visualizarlo de inmediato y te ayudará a decidir dónde actuar y qué estrategias implementar. "]

{"sheet":"📊 Dashboard","index":1,"n_rows":41,"n_cols":4,"rows_kept":41,"merged":[[0,0,0,3],[2,0,2,3],[15,0,15,3],[25,0,25,3],[35,0,35,3]]}
["📊 DASHBOARD DE ROTACIÓN DE TALENTO"]
[]
["🎯 MÉTRICAS CLAVE DE ROTACIÓN"]
["Métrica","Valor","Fórmula","Status"]
["Total Colaboradores Actuales",{"$f":"COUNTA('👥 Datos Colaboradores'!B3:B998)","v":12}]
["Promedio Colaboradores (Año)",{"$f":"(B5+B7)/2","v":{"v":7.5,"d":"8"}},"(Colaboradores+Salidas)/2"]
["Total Salidas (Año)",{"$f":"COUNTA('🚪 Registro Salidas'!B3:B998)","v":3}]
["Tasa de Rotación Anual",{"$f":"(B7/B6)*100%","v":{"v":0.4,"d":"0.40"}},"(Salidas/PromediodeColaboradores)*100"]
["Rotación Voluntaria",{"$f":"COUNTIF('🚪 Registro Salidas'!F3:F998,\"*Voluntario*\")","v":2},"Solo renuncias"]
["Rotación Involuntaria",{"$f":"COUNTIF('🚪 Registro Salidas'!F3:F998,\"*Involuntaria*\")","v":1},"Despidos/Fin contrato"]
[]
["💰 IMPACTO ECONÓMICO"]
["Costo Total de Rotación",{"$f":"B23*B7","v":{"v":27600,"d":"$27,600.00"}},"Suma todos los costos"]
["Costo por Salida",{"$f":"B13/B7","v":{"v":9200,"d":"$9,200.00"}},"Costo total/Salidas"]
[]
["💸 DESGLOSE DE COSTOS POR CATEGORÍA"]
["Categoría","Costo por Salida","Total Salidas","Costo Total"]
["Reclutamiento",{"$f":"'💰 Configuración Costos'!B3","v":{"v":1500,"d":"$1,500.00"}},0,{"$f":"B18*C18","v":{"v":0,"d":"$0.00"}}]
["Capacitación",{"$f":"'💰 Configuración Costos'!B4","v":{"v":2500,"d":"$2,500.00"}},0,{"v":0,"d":"$0.00"}]
["Pérdida de Productividad",{"$f":"'💰 Configuración Costos'!B5","v":{"v":3200,"d":"$3,200.00"}},0,{"v":0,"d":"$0.00"}]
["Pérdida de Conocimiento",{"$f":"'💰 Configuración Costos'!B6","v":{"v":800,"d":"$800.00"}},0,{"v":0,"d":"$0.00"}]
["Horas extras del equipo",{"$f":"'💰 Configuración Costos'!B7","v":{"v":1200,"d":"$1,200.00"}},0,{"v":0,"d":"$0.00"}]
["TOTAL",{"$f":"SUM(B18:B22)","v":{"v":9200,"d":"$9,200.00"}},null,{"$f":"SUM(D18:D22)","v":{"v":0,"d":"$0.00"}}]
[]
[]
["🏢 ROTACIÓN POR DEPARTAMENTO"]
["Departamento","Total Colaboradores","Salidas","Tasa Rotación (%)"]
["Ventas",{"$f":"COUNTIF('👥 Datos Colaboradores'!C3:C998,\"*Ventas*\")","v":2},{"$f":"COUNTIF('🚪 Registro Salidas'!C3:C998,\"*Ventas*\")","v":1},{"$f":"C28/((B28+C28)/2)*100%","v":{"v":0.6666666667,"d":"66.67%"}}]
["Operaciones",{"$f":"COUNTIF('👥 Datos Colaboradores'!C4:C998,\"*Operaciones*\")","v":4},{"$f":"COUNTIF('🚪 Registro Salidas'!C4:C998,\"*Operaciones*\")","v":1},{"v":0.4,"d":"40.00%"}]
["Marketing",{"$f":"COUNTIF('👥 Datos Colaboradores'!C5:C998,\"*Marketing*\")","v":1},{"$f":"COUNTIF('🚪 Registro Salidas'!C5:C998,\"*Marketing*\")","v":0},{"v":0,"d":"0.00%"}]
["Finanzas",{"$f":"COUNTIF('👥 Datos Colaboradores'!C6:C998,\"*finanzas*\")","v":1},{"$f":"COUNTIF('🚪 Registro Salidas'!C6:C998,\"*Finanzas*\")","v":0},{"v":0,"d":"0.00%"}]
["RRHH",{"$f":"COUNTIF('👥 Datos Colaboradores'!C7:C998,\"*rrhh*\")","v":1},{"$f":"COUNTIF('🚪 Registro Salidas'!C7:C998,\"*rrhh*\")","v":0},{"v":0,"d":"0.00%"}]
["Administración",{"$f":"COUNTIF('👥 Datos Colaboradores'!C8:C998,\"*administración*\")","v":1},{"$f":"COUNTIF('🚪 Registro Salidas'!C8:C998,\"*administración*\")","v":0},{"v":0,"d":"0.00%"}]
[]
[]
["📋 INSTRUCCIONES DE USO"]
["1. Registra colaboradores activos en \"👥 Datos Colaboradores\""]
["2. Registra cada salida en \"🚪 Registro Salidas\""]
["3. Ajusta costos en \"💰 Configuración Costos\""]
["4. Los cálculos se actualizan automáticamente"]
["5. Usa el menú \"📊 Rotación\" para actualizar"]

{"sheet":"👥 Datos Colaboradores","index":2,"n_rows":14,"n_cols":6,"rows_kept":14,"merged":[[0,0,0,5]]}
["👥 DATOS DE COLABORADORES ACTIVOS"]
["ID Colaborador","Nombre Completo","Departamento","Puesto","Fecha Ingreso","Salario Mensual"]
["EMP001","Juan Pérez","Ventas","Vendedor Senior","2023-03-01",{"v":3500,"d":"$3,500.00"}]
["EMP002","María González","TI","Desarrollador","2022-06-15",{"v":4500,"d":"$4,500.00"}]
["EMP003","Carlos Rodríguez","RRHH","Analista","2024-01-10",{"v":3000,"d":"$3,000.00"}]
["EMP004","Ana Martínez","Finanzas","Contador","2023-09-20",{"v":3800,"d":"$3,800.00"}]
["EMP005","Luis Fernández","Ventas","Supervisor","2021-11-05",{"v":4200,"d":"$4,200.00"}]
["EMP006","Luis Fernández","Operaciones","Supervisor","2021-11-05",{"v":4200,"d":"$4,200.00"}]
["EMP007","Luis Fernández","Operaciones","Supervisor","2021-11-05",{"v":4200,"d":"$4,200.00"}]
["EMP008","Luis Fernández","Marketing","Supervisor","2021-11-05",{"v":4200,"d":"$4,200.00"}]
["EMP009","Luis Fernández","Administración","Supervisor","2021-11-05",{"v":4200,"d":"$4,200.00"}]
["EMP0010","Luis Fernández","Operaciones","Supervisor","2021-11-05",{"v":4200,"d":"$4,200.00"}]
["EMP0011","Luis Fernández","RRHH","Supervisor","2021-11-05",{"v":4200,"d":"$4,200.00"}]
["EMP0012","Luis Fernández","Operaciones","Supervisor","2021-11-05",{"v":4200,"d":"$4,200.00"}]

{"sheet":"🚪 Registro Salidas","index":3,"n_rows":5,"n_cols":8,"rows_kept":5,"merged":[[0,0,0,7]]}
["🚪 REGISTRO DE SALIDAS DE TALENTO"]
["ID Colaborador","Nombre","Departamento","Puesto","Fecha Salida","Tipo Salida","Motivo","Salario Mensual"]
["EMP010","Pedro López","Ventas","Vendedor","2024-05-15","Voluntario","Mejor oferta",{"v":3200,"d":"$3,200.00"}]
["EMP015","Laura Sánchez","TI","Programador","2024-08-22","Voluntario","Razones personales",{"v":4000,"d":"$4,000.00"}]
["EMP022","Miguel Torres","Operaciones","Operario","2024-10-10","Involuntaria","Fin de contrato",{"v":2800,"d":"$2,800.00"}]

{"sheet":"💰 Configuración Costos","index":4,"n_rows":15,"n_cols":4,"rows_kept":15,"merged":[[0,0,0,3]]}
["💰 CONFIGURACIÓN DE COSTOS DE ROTACIÓN"]
["Categoría de Costo","Costo por Salida","Descripción","Base de Cálculo"]
["Reclutamiento",{"v":1500,"d":"$1,500.00"},"Publicaciones, entrevistas, selección","Costo promedio por proceso"]
["Capacitación",{"v":2500,"d":"$2,500.00"},"Inducción, formación inicial, certificaciones","Horas x costo hora capacitador"]
["Pérdida de productividad",{"v":3200,"d":"$3,200.00"},"Diferencia rendimiento vs colaborador experimentado","30% salario x 3 meses"]
["Pérdida de conocimiento",{"v":800,"d":"$800.00"},"Errores, retrabajos, pérdida de clientes","Estimación conservadora"]
["Horas extras del equipo",{"v":1200,"d":"$1,200.00"},"Compensación por carga adicional del equipo","20 horas x $60/hora"]
[]
["COSTO TOTAL POR SALIDA",{"$f":"SUM(B3:B7)","v":{"v":9200,"d":"$9,200.00"}}]
[]
["📌 INSTRUCCIONES:"]
["Ajusta los costos en la columna B según tu empresa."]
["Los costos se aplican automáticamente al dashboard."]
["Considera costos directos e indirectos."]
["Revisa y actualiza periódicamente."]